[Event "Titled Tuesday Blitz July 4 Late 2023"]
[White "Ozer, Omer Faruk"]
[Black "Philippe, Guillaume"]
[WhiteFideId "6354564"]
[BlackFideId "36048763"]
[WhiteElo "2718"]
[BlackElo "2417"]
[Result "1-0"]
[Round "1"]
[TimeControl "180+2"]
[Date "2023.07.04"]
[WhiteClock "0:00:19"]
[BlackClock "0:00:25"]
[Board "71"]

1. d4 {[%clk 0:02:59]}  Nf6 {[%clk 0:02:59]} 2. Nf3 {[%clk 0:02:58]}  d5 {[%clk 0:02:57]} 3. c4 {[%clk 0:02:58]}  e6 {[%clk 0:02:56]} 4. Nc3 {[%clk 0:02:57]}  dxc4 {[%clk 0:02:56]} 5. e4 {[%clk 0:02:55]}  b5 {[%clk 0:02:57]} 6. e5 {[%clk 0:02:55]}  Nd5 {[%clk 0:02:58]} 7. Nxb5 {[%clk 0:02:54]}  Nb6 {[%clk 0:02:58]} 8. g3 {[%clk 0:02:48]}  Bb7 {[%clk 0:02:55]} 9. Bg2 {[%clk 0:02:48]}  Be7 {[%clk 0:02:55]} 10. O-O {[%clk 0:02:48]}  O-O {[%clk 0:02:55]} 11. Qe2 {[%clk 0:02:45]}  Nc6 {[%clk 0:02:49]} 12. Rd1 {[%clk 0:02:45]}  Nb4 {[%clk 0:02:49]} 13. Nc3 {[%clk 0:02:32]}  Qc8 {[%clk 0:02:47]} 14. h4 {[%clk 0:02:26]}  c5 {[%clk 0:02:42]} 15. Bg5 {[%clk 0:02:21]}  Bxg5 {[%clk 0:02:38]} 16. hxg5 {[%clk 0:02:21]}  cxd4 {[%clk 0:02:37]} 17. Rxd4 {[%clk 0:02:17]}  Rd8 {[%clk 0:02:35]} 18. Rh4 {[%clk 0:02:17]}  Nd3 {[%clk 0:02:14]} 19. Ne1 {[%clk 0:02:01]}  Bxg2 {[%clk 0:02:07]} 20. Nxg2 {[%clk 0:02:02]}  Qc5 {[%clk 0:02:04]} 21. Qh5 {[%clk 0:01:56]}  Qxf2+ {[%clk 0:01:59]} 22. Kh2 {[%clk 0:01:55]}  Nxe5 {[%clk 0:01:47]} 23. Qxh7+ {[%clk 0:01:51]}  Kf8 {[%clk 0:01:47]} 24. Ne4 {[%clk 0:00:59]}  Nf3+ {[%clk 0:01:14]} 25. Kh1 {[%clk 0:00:58]}  Qe2 {[%clk 0:01:12]} 26. Nf4 {[%clk 0:00:27]}  Rd1+ {[%clk 0:01:05]} 27. Rxd1 {[%clk 0:00:24]}  Qxd1+ {[%clk 0:01:05]} 28. Kg2 {[%clk 0:00:23]}  Nxh4+ {[%clk 0:01:05]} 29. Qxh4 {[%clk 0:00:22]}  Qc2+ {[%clk 0:01:02]} 30. Kf3 {[%clk 0:00:22]}  Qd1+ {[%clk 0:00:29]} 31. Kf2 {[%clk 0:00:20]}  Qd4+ {[%clk 0:00:29]} 32. Kf3 {[%clk 0:00:20]}  Rd8 {[%clk 0:00:27]} 33. g6 {[%clk 0:00:20]}  Nd5 {[%clk 0:00:25]} 34. Qxd8# {[%clk 0:00:19]} 1-0


[Site "https://www.chess.com"]

[Event "Titled Tuesday Blitz July 4 Late 2023"]
[White "Ashraf, Artin"]
[Black "Pein, Jonathan"]
[WhiteFideId "22514805"]
[BlackFideId "417092"]
[WhiteElo "2710"]
[BlackElo "2415"]
[Result "1-0"]
[Round "1"]
[TimeControl "180+2"]
[Date "2023.07.04"]
[WhiteClock "0:00:59"]
[BlackClock "0:00:38"]
[Board "73"]

1. Nf3 {[%clk 0:02:54]}  d6 {[%clk 0:02:58]} 2. e4 {[%clk 0:02:51]}  e5 {[%clk 0:02:58]} 3. Nc3 {[%clk 0:02:50]}  Nf6 {[%clk 0:02:59]} 4. d4 {[%clk 0:02:49]}  exd4 {[%clk 0:03:00]} 5. Nxd4 {[%clk 0:02:49]}  g6 {[%clk 0:03:00]} 6. Be2 {[%clk 0:02:45]}  Bg7 {[%clk 0:03:01]} 7. Be3 {[%clk 0:02:45]}  O-O {[%clk 0:03:01]} 8. O-O {[%clk 0:02:45]}  Re8 {[%clk 0:03:02]} 9. Bf3 {[%clk 0:02:44]}  Nbd7 {[%clk 0:03:02]} 10. Re1 {[%clk 0:02:36]}  Ne5 {[%clk 0:03:02]} 11. Be2 {[%clk 0:02:35]}  Nfg4 {[%clk 0:03:03]} 12. Bf4 {[%clk 0:02:31]}  h5 {[%clk 0:02:20]} 13. h3 {[%clk 0:02:21]}  Nf6 {[%clk 0:02:20]} 14. Bf1 {[%clk 0:02:17]}  Nc6 {[%clk 0:02:20]} 15. Bg5 {[%clk 0:02:10]}  Nxd4 {[%clk 0:02:18]} 16. Qxd4 {[%clk 0:02:09]}  Be6 {[%clk 0:02:12]} 17. Qd2 {[%clk 0:02:01]}  c6 {[%clk 0:02:08]} 18. Qf4 {[%clk 0:02:00]}  Qe7 {[%clk 0:01:53]} 19. Re3 {[%clk 0:01:58]}  d5 {[%clk 0:00:57]} 20. e5 {[%clk 0:01:42]}  Qd7 {[%clk 0:00:57]} 21. Bxf6 {[%clk 0:01:24]}  Bf8 {[%clk 0:00:54]} 22. Rd1 {[%clk 0:01:16]}  c5 {[%clk 0:00:51]} 23. Bb5 {[%clk 0:01:14]}  Qc7 {[%clk 0:00:49]} 24. Bxe8 {[%clk 0:01:13]}  Rxe8 {[%clk 0:00:50]} 25. Nxd5 {[%clk 0:01:14]}  Bxd5 {[%clk 0:00:50]} 26. Rxd5 {[%clk 0:01:15]}  c4 {[%clk 0:00:50]} 27. Re1 {[%clk 0:01:09]}  b5 {[%clk 0:00:50]} 28. Red1 {[%clk 0:01:09]}  Bc5 {[%clk 0:00:48]} 29. Rd8 {[%clk 0:01:08]}  Rxd8 {[%clk 0:00:42]} 30. Rxd8+ {[%clk 0:01:09]}  Bf8 {[%clk 0:00:43]} 31. Qh6 {[%clk 0:01:01]}  Qxd8 {[%clk 0:00:38]} 32. Qh8# {[%clk 0:00:59]} 1-0


[Site "https://www.chess.com"]

[Event "Titled Tuesday Blitz July 4 Late 2023"]
[White "Daggupati, Balaji"]
[Black "Mickiewicz, Piotr"]
[WhiteFideId "2090759"]
[BlackFideId "1114891"]
[WhiteElo "2704"]
[BlackElo "2414"]
[Result "0-1"]
[Round "1"]
[TimeControl "180+2"]
[Date "2023.07.04"]
[WhiteClock "0:00:18"]
[BlackClock "0:00:09"]
[Board "75"]

1. e4 {[%clk 0:03:00]}  c6 {[%clk 0:02:56]} 2. d4 {[%clk 0:03:00]}  d5 {[%clk 0:02:57]} 3. Nc3 {[%clk 0:03:00]}  dxe4 {[%clk 0:02:56]} 4. Nxe4 {[%clk 0:03:01]}  Bf5 {[%clk 0:02:56]} 5. Ng3 {[%clk 0:03:01]}  Bg6 {[%clk 0:02:56]} 6. h4 {[%clk 0:03:02]}  h6 {[%clk 0:02:57]} 7. h5 {[%clk 0:03:02]}  Bh7 {[%clk 0:02:55]} 8. Bd3 {[%clk 0:03:03]}  Bxd3 {[%clk 0:02:55]} 9. Qxd3 {[%clk 0:03:03]}  Nf6 {[%clk 0:02:55]} 10. Nf3 {[%clk 0:03:03]}  Nbd7 {[%clk 0:02:54]} 11. Bf4 {[%clk 0:03:02]}  e6 {[%clk 0:02:49]} 12. O-O-O {[%clk 0:02:53]}  Nd5 {[%clk 0:02:40]} 13. Bd2 {[%clk 0:02:48]}  a5 {[%clk 0:02:40]} 14. Kb1 {[%clk 0:02:46]}  Nb4 {[%clk 0:02:33]} 15. Qe2 {[%clk 0:02:39]}  Be7 {[%clk 0:02:21]} 16. Ne4 {[%clk 0:02:38]}  Nf6 {[%clk 0:02:05]} 17. Nxf6+ {[%clk 0:02:32]}  Bxf6 {[%clk 0:01:56]} 18. c3 {[%clk 0:02:32]}  Qd5 {[%clk 0:00:56]} 19. cxb4 {[%clk 0:02:30]}  axb4 {[%clk 0:00:57]} 20. b3 {[%clk 0:02:30]}  Qf5+ {[%clk 0:00:54]} 21. Kc1 {[%clk 0:01:48]}  Rxa2 {[%clk 0:00:54]} 22. Qc4 {[%clk 0:01:49]}  O-O {[%clk 0:00:41]} 23. Bxb4 {[%clk 0:00:38]}  Rfa8 {[%clk 0:00:40]} 24. Qc3 {[%clk 0:00:29]}  Rxf2 {[%clk 0:00:14]} 25. Nd2 {[%clk 0:00:27]}  Bg5 {[%clk 0:00:13]} 26. Qc2 {[%clk 0:00:26]}  Ra1+ {[%clk 0:00:11]} 27. Kb2 {[%clk 0:00:26]}  Ra2+ {[%clk 0:00:11]} 28. Kxa2 {[%clk 0:00:26]}  Qxc2+ {[%clk 0:00:11]} 29. Ka3 {[%clk 0:00:27]}  Bxd2 {[%clk 0:00:09]} 30. Bxd2 {[%clk 0:00:26]}  Rxd2 {[%clk 0:00:10]} 31. Ra1 {[%clk 0:00:18]}  Qc3 {[%clk 0:00:09]} 0-1


[Site "https://www.chess.com"]

[Event "Titled Tuesday Blitz July 4 Late 2023"]
[White "Matinian, Nikita"]
[Black "Carrasco Miranda, Andres"]
[WhiteFideId "24129100"]
[BlackFideId "3405990"]
[WhiteElo "2686"]
[BlackElo "2411"]
[Result "1-0"]
[Round "1"]
[TimeControl "180+2"]
[Date "2023.07.04"]
[WhiteClock "0:00:28"]
[BlackClock "0:00:07"]
[Board "79"]

1. e4 {[%clk 0:03:00]}  e5 {[%clk 0:02:57]} 2. Nf3 {[%clk 0:03:00]}  Nc6 {[%clk 0:02:56]} 3. Bb5 {[%clk 0:03:01]}  Nf6 {[%clk 0:02:56]} 4. O-O {[%clk 0:03:01]}  Nxe4 {[%clk 0:02:56]} 5. d4 {[%clk 0:03:01]}  Nd6 {[%clk 0:02:56]} 6. Bxc6 {[%clk 0:03:01]}  dxc6 {[%clk 0:02:57]} 7. dxe5 {[%clk 0:03:02]}  Nf5 {[%clk 0:02:58]} 8. Qxd8+ {[%clk 0:03:02]}  Kxd8 {[%clk 0:02:59]} 9. h3 {[%clk 0:03:03]}  h5 {[%clk 0:02:59]} 10. Nc3 {[%clk 0:03:01]}  Ke8 {[%clk 0:02:58]} 11. Bf4 {[%clk 0:03:00]}  Be6 {[%clk 0:02:57]} 12. Ng5 {[%clk 0:02:56]}  Rh6 {[%clk 0:02:57]} 13. Rad1 {[%clk 0:02:49]}  Be7 {[%clk 0:02:50]} 14. Nxe6 {[%clk 0:02:45]}  Rxe6 {[%clk 0:02:51]} 15. g4 {[%clk 0:02:44]}  hxg4 {[%clk 0:02:51]} 16. hxg4 {[%clk 0:02:45]}  Rg6 {[%clk 0:02:36]} 17. f3 {[%clk 0:02:44]}  Bc5+ {[%clk 0:02:36]} 18. Kg2 {[%clk 0:02:40]}  Be3 {[%clk 0:02:33]} 19. Bg3 {[%clk 0:02:25]}  Nxg3 {[%clk 0:02:28]} 20. Kxg3 {[%clk 0:02:26]}  Rd8 {[%clk 0:02:25]} 21. Rxd8+ {[%clk 0:02:21]}  Kxd8 {[%clk 0:02:26]} 22. f4 {[%clk 0:02:21]}  Rh6 {[%clk 0:02:20]} 23. g5 {[%clk 0:02:15]}  Rh8 {[%clk 0:02:15]} 24. Ne4 {[%clk 0:02:10]}  Ke7 {[%clk 0:02:11]} 25. f5 {[%clk 0:02:02]}  g6 {[%clk 0:01:55]} 26. fxg6 {[%clk 0:01:49]}  fxg6 {[%clk 0:01:56]} 27. Rf6 {[%clk 0:01:49]}  Bd4 {[%clk 0:01:42]} 28. Rxg6 {[%clk 0:01:48]}  Bxe5+ {[%clk 0:01:41]} 29. Kg4 {[%clk 0:01:49]}  Rh2 {[%clk 0:01:31]} 30. Kf5 {[%clk 0:01:45]}  Bxb2 {[%clk 0:01:31]} 31. c3 {[%clk 0:01:45]}  Rc2 {[%clk 0:01:08]} 32. Rg7+ {[%clk 0:01:41]}  Kf8 {[%clk 0:01:08]} 33. Rxc7 {[%clk 0:01:37]}  Bxc3 {[%clk 0:01:08]} 34. Rxb7 {[%clk 0:01:36]}  Bd4 {[%clk 0:01:07]} 35. a4 {[%clk 0:01:32]}  Ra2 {[%clk 0:01:03]} 36. Rb4 {[%clk 0:00:45]}  Bb6 {[%clk 0:00:49]} 37. Nf6 {[%clk 0:00:42]}  Rf2+ {[%clk 0:00:42]} 38. Kg6 {[%clk 0:00:42]}  Ke7 {[%clk 0:00:37]} 39. Re4+ {[%clk 0:00:39]}  Kd6 {[%clk 0:00:36]} 40. Kf7 {[%clk 0:00:38]}  Ba5 {[%clk 0:00:29]} 41. g6 {[%clk 0:00:29]}  Bc3 {[%clk 0:00:29]} 42. Re6+ {[%clk 0:00:29]}  Kc7 {[%clk 0:00:28]} 43. g7 {[%clk 0:00:29]}  Bxf6 {[%clk 0:00:18]} 44. Rxf6 {[%clk 0:00:30]}  Rd2 {[%clk 0:00:15]} 45. g8=Q {[%clk 0:00:30]}  Rd8 {[%clk 0:00:07]} 46. Rxc6+ {[%clk 0:00:28]} 1-0


[Site "https://www.chess.com"]

[Event "Titled Tuesday Blitz July 4 Late 2023"]
[White "Federzoni, Enzo"]
[Black "Rosen, Eric"]
[WhiteFideId "2173301"]
[BlackFideId "2032562"]
[WhiteElo "2405"]
[BlackElo "2684"]
[Result "1-0"]
[Round "1"]
[TimeControl "180+2"]
[Date "2023.07.04"]
[WhiteClock "0:00:10"]
[BlackClock "0:00:00"]
[Board "80"]

1. e4 {[%clk 0:02:53]}  c5 {[%clk 0:02:58]} 2. Nf3 {[%clk 0:02:53]}  Nc6 {[%clk 0:02:58]} 3. Bb5 {[%clk 0:02:53]}  e6 {[%clk 0:02:53]} 4. Bxc6 {[%clk 0:02:53]}  bxc6 {[%clk 0:02:53]} 5. b3 {[%clk 0:02:53]}  Ne7 {[%clk 0:02:53]} 6. Bb2 {[%clk 0:02:46]}  f6 {[%clk 0:02:43]} 7. c4 {[%clk 0:02:38]}  Ng6 {[%clk 0:02:43]} 8. g3 {[%clk 0:02:37]}  e5 {[%clk 0:02:35]} 9. h4 {[%clk 0:02:36]}  Be7 {[%clk 0:02:35]} 10. h5 {[%clk 0:02:33]}  Nf8 {[%clk 0:02:36]} 11. Nc3 {[%clk 0:02:31]}  Ne6 {[%clk 0:02:36]} 12. Na4 {[%clk 0:02:29]}  O-O {[%clk 0:02:30]} 13. Qe2 {[%clk 0:02:28]}  d6 {[%clk 0:02:29]} 14. h6 {[%clk 0:02:24]}  g6 {[%clk 0:02:29]} 15. Nc3 {[%clk 0:02:17]}  Nd4 {[%clk 0:02:29]} 16. Nxd4 {[%clk 0:02:17]}  cxd4 {[%clk 0:02:29]} 17. Nd1 {[%clk 0:02:15]}  c5 {[%clk 0:02:22]} 18. d3 {[%clk 0:02:15]}  f5 {[%clk 0:02:21]} 19. f3 {[%clk 0:02:15]}  a5 {[%clk 0:02:18]} 20. Nf2 {[%clk 0:02:08]}  a4 {[%clk 0:02:16]} 21. Kf1 {[%clk 0:02:06]}  Bg5 {[%clk 0:02:09]} 22. Kg2 {[%clk 0:02:02]}  Rf7 {[%clk 0:01:55]} 23. Bc1 {[%clk 0:02:01]}  axb3 {[%clk 0:01:42]} 24. Bxg5 {[%clk 0:01:52]}  Qxg5 {[%clk 0:01:41]} 25. axb3 {[%clk 0:01:51]}  Rxa1 {[%clk 0:01:42]} 26. Rxa1 {[%clk 0:01:52]}  Qxh6 {[%clk 0:01:43]} 27. Ra8 {[%clk 0:01:47]}  Rf8 {[%clk 0:01:43]} 28. Qa2 {[%clk 0:01:46]}  fxe4 {[%clk 0:01:33]} 29. Nxe4 {[%clk 0:01:45]}  Qe3 {[%clk 0:01:00]} 30. Nxd6 {[%clk 0:01:05]}  Qxf3+ {[%clk 0:00:52]} 31. Kh2 {[%clk 0:01:05]}  Qh5+ {[%clk 0:00:37]} 32. Kg1 {[%clk 0:01:02]}  Qd1+ {[%clk 0:00:19]} 33. Kh2 {[%clk 0:01:02]}  Qh5+ {[%clk 0:00:05]} 34. Kg1 {[%clk 0:01:01]}  Qg4 {[%clk 0:00:03]} 35. Qg2 {[%clk 0:00:51]}  Be6 {[%clk 0:00:01]} 36. Rxf8+ {[%clk 0:00:44]}  Kxf8 {[%clk 0:00:02]} 37. Qa8+ {[%clk 0:00:44]}  Kg7 {[%clk 0:00:02]} 38. Qb7+ {[%clk 0:00:40]}  Kh6 {[%clk 0:00:03]} 39. Qh1+ {[%clk 0:00:40]}  Kg5 {[%clk 0:00:02]} 40. Ne4+ {[%clk 0:00:39]}  Kf5 {[%clk 0:00:02]} 41. Qxh7 {[%clk 0:00:35]}  Qd1+ {[%clk 0:00:02]} 42. Kg2 {[%clk 0:00:35]}  Qe2+ {[%clk 0:00:02]} 43. Nf2 {[%clk 0:00:35]}  e4 {[%clk 0:00:02]} 44. dxe4+ {[%clk 0:00:31]}  Ke5 {[%clk 0:00:02]} 45. Qc7+ {[%clk 0:00:23]}  Kf6 {[%clk 0:00:02]} 46. Qxc5 {[%clk 0:00:23]}  d3 {[%clk 0:00:02]} 47. Qd4+ {[%clk 0:00:19]}  Ke7 {[%clk 0:00:03]} 48. Qxd3 {[%clk 0:00:19]}  Qh5 {[%clk 0:00:03]} 49. Qf3 {[%clk 0:00:18]}  Qa5 {[%clk 0:00:01]} 50. Qe3 {[%clk 0:00:14]}  Qa2 {[%clk 0:00:01]} 51. c5 {[%clk 0:00:13]}  Bxb3 {[%clk 0:00:01]} 52. c6 {[%clk 0:00:13]}  Qc2 {[%clk 0:00:02]} 53. Qb6 {[%clk 0:00:10]}  Be6 {[%clk 0:00:00]} 54. Qc7+ {[%clk 0:00:10]} 1-0


[Site "https://www.chess.com"]

[Event "Titled Tuesday Blitz July 4 Late 2023"]
[White "Silva Lucena, Cristian"]
[Black "Nasuta, Grzegorz"]
[WhiteFideId "2232588"]
[BlackFideId "1141686"]
[WhiteElo "2404"]
[BlackElo "2683"]
[Result "0-1"]
[Round "1"]
[TimeControl "180+2"]
[Date "2023.07.04"]
[WhiteClock "0:00:19"]
[BlackClock "0:01:05"]
[Board "82"]

1. e4 {[%clk 0:02:58]}  c5 {[%clk 0:02:56]} 2. Nf3 {[%clk 0:02:57]}  e6 {[%clk 0:02:53]} 3. d4 {[%clk 0:02:58]}  cxd4 {[%clk 0:02:54]} 4. Nxd4 {[%clk 0:02:58]}  Nf6 {[%clk 0:02:54]} 5. Nc3 {[%clk 0:02:59]}  d6 {[%clk 0:02:55]} 6. g3 {[%clk 0:02:58]}  Nc6 {[%clk 0:02:53]} 7. Bg2 {[%clk 0:02:57]}  Bd7 {[%clk 0:02:53]} 8. O-O {[%clk 0:02:56]}  Be7 {[%clk 0:02:53]} 9. h3 {[%clk 0:02:51]}  O-O {[%clk 0:02:53]} 10. Re1 {[%clk 0:02:49]}  a6 {[%clk 0:02:50]} 11. a4 {[%clk 0:02:48]}  Rc8 {[%clk 0:02:49]} 12. g4 {[%clk 0:02:39]}  Nxd4 {[%clk 0:02:48]} 13. Qxd4 {[%clk 0:02:38]}  e5 {[%clk 0:02:47]} 14. Qd3 {[%clk 0:02:35]}  Be6 {[%clk 0:02:47]} 15. Be3 {[%clk 0:02:32]}  Qc7 {[%clk 0:02:41]} 16. a5 {[%clk 0:02:26]}  Nd7 {[%clk 0:02:36]} 17. Na4 {[%clk 0:01:52]}  Qxc2 {[%clk 0:02:31]} 18. Qxc2 {[%clk 0:01:24]}  Rxc2 {[%clk 0:02:32]} 19. Rec1 {[%clk 0:01:15]}  Rfc8 {[%clk 0:02:30]} 20. Rxc2 {[%clk 0:01:13]}  Rxc2 {[%clk 0:02:31]} 21. Rc1 {[%clk 0:01:13]}  Rxc1+ {[%clk 0:02:29]} 22. Bxc1 {[%clk 0:01:14]}  Kf8 {[%clk 0:02:24]} 23. Be3 {[%clk 0:01:13]}  Ke8 {[%clk 0:02:23]} 24. b4 {[%clk 0:01:13]}  Kd8 {[%clk 0:02:22]} 25. Kf1 {[%clk 0:01:06]}  h6 {[%clk 0:02:15]} 26. Ke2 {[%clk 0:01:02]}  Bc4+ {[%clk 0:02:12]} 27. Kf3 {[%clk 0:00:57]}  d5 {[%clk 0:02:09]} 28. Kg3 {[%clk 0:00:53]}  d4 {[%clk 0:01:59]} 29. Bd2 {[%clk 0:00:52]}  Nb8 {[%clk 0:01:52]} 30. Nb6 {[%clk 0:00:50]}  Bb3 {[%clk 0:01:44]} 31. Nd5 {[%clk 0:00:50]}  Bd6 {[%clk 0:01:40]} 32. f4 {[%clk 0:00:44]}  Nc6 {[%clk 0:01:38]} 33. fxe5 {[%clk 0:00:36]}  Bxe5+ {[%clk 0:01:38]} 34. Bf4 {[%clk 0:00:36]}  d3 {[%clk 0:01:35]} 35. Bxe5 {[%clk 0:00:23]}  Nxe5 {[%clk 0:01:14]} 36. Kf4 {[%clk 0:00:24]}  d2 {[%clk 0:01:13]} 37. Nc3 {[%clk 0:00:19]}  f6 {[%clk 0:01:05]} 0-1


[Site "https://www.chess.com"]

[Event "Titled Tuesday Blitz July 4 Late 2023"]
[White "Mikhalsky, Vladimir"]
[Black "Koellner, Ruben Gideon"]
[WhiteFideId "14144352"]
[BlackFideId "12993093"]
[WhiteElo "2403"]
[BlackElo "2681"]
[Result "1-0"]
[Round "1"]
[TimeControl "180+2"]
[Date "2023.07.04"]
[WhiteClock "0:00:07"]
[BlackClock "0:00:50"]
[Board "84"]

1. d4 {[%clk 0:02:57]}  d6 {[%clk 0:03:00]} 2. e4 {[%clk 0:02:56]}  Nf6 {[%clk 0:02:59]} 3. Nc3 {[%clk 0:02:54]}  e5 {[%clk 0:03:00]} 4. Nf3 {[%clk 0:02:54]}  Nbd7 {[%clk 0:03:00]} 5. Bc4 {[%clk 0:02:53]}  Be7 {[%clk 0:03:00]} 6. Bxf7+ {[%clk 0:02:31]}  Kxf7 {[%clk 0:03:00]} 7. Ng5+ {[%clk 0:02:31]}  Kg8 {[%clk 0:03:00]} 8. Ne6 {[%clk 0:02:31]}  Qe8 {[%clk 0:03:00]} 9. Nxc7 {[%clk 0:02:29]}  Qg6 {[%clk 0:03:01]} 10. O-O {[%clk 0:02:10]}  Rb8 {[%clk 0:03:00]} 11. N3d5 {[%clk 0:01:59]}  Nxd5 {[%clk 0:02:48]} 12. Nxd5 {[%clk 0:01:51]}  Bd8 {[%clk 0:02:46]} 13. Re1 {[%clk 0:01:48]}  Nf6 {[%clk 0:02:44]} 14. dxe5 {[%clk 0:01:36]}  dxe5 {[%clk 0:02:44]} 15. Be3 {[%clk 0:01:24]}  b6 {[%clk 0:02:34]} 16. f3 {[%clk 0:01:18]}  Be6 {[%clk 0:02:26]} 17. c4 {[%clk 0:01:16]}  h6 {[%clk 0:02:25]} 18. Nb4 {[%clk 0:01:05]}  Rc8 {[%clk 0:02:16]} 19. b3 {[%clk 0:00:53]}  Kh7 {[%clk 0:02:07]} 20. Qd2 {[%clk 0:00:48]}  Be7 {[%clk 0:01:58]} 21. Nd5 {[%clk 0:00:48]}  Bc5 {[%clk 0:01:57]} 22. Rac1 {[%clk 0:00:45]}  Nh5 {[%clk 0:01:53]} 23. Kh1 {[%clk 0:00:43]}  Rhd8 {[%clk 0:01:49]} 24. Qc3 {[%clk 0:00:43]}  Bxd5 {[%clk 0:01:47]} 25. exd5 {[%clk 0:00:40]}  Bxe3 {[%clk 0:01:40]} 26. Qxe3 {[%clk 0:00:39]}  Re8 {[%clk 0:01:38]} 27. Qe4 {[%clk 0:00:37]}  Nf4 {[%clk 0:01:36]} 28. Qxg6+ {[%clk 0:00:34]}  Kxg6 {[%clk 0:01:37]} 29. Rcd1 {[%clk 0:00:32]}  Kf5 {[%clk 0:01:37]} 30. g3 {[%clk 0:00:32]}  Ng6 {[%clk 0:01:37]} 31. d6 {[%clk 0:00:31]}  Rcd8 {[%clk 0:01:37]} 32. b4 {[%clk 0:00:31]}  Ke6 {[%clk 0:01:31]} 33. c5 {[%clk 0:00:31]}  bxc5 {[%clk 0:01:32]} 34. bxc5 {[%clk 0:00:30]}  Rf8 {[%clk 0:01:33]} 35. f4 {[%clk 0:00:30]}  Rf5 {[%clk 0:01:26]} 36. Re4 {[%clk 0:00:19]}  Kd7 {[%clk 0:01:25]} 37. Ra4 {[%clk 0:00:16]}  Ra8 {[%clk 0:01:20]} 38. Ra6 {[%clk 0:00:16]}  Rc8 {[%clk 0:01:02]} 39. c6+ {[%clk 0:00:17]}  Rxc6 {[%clk 0:00:59]} 40. Rxc6 {[%clk 0:00:16]}  Kxc6 {[%clk 0:00:58]} 41. d7 {[%clk 0:00:17]}  Rf8 {[%clk 0:00:58]} 42. d8=Q {[%clk 0:00:16]}  Rxd8 {[%clk 0:00:59]} 43. Rxd8 {[%clk 0:00:16]}  exf4 {[%clk 0:01:00]} 44. gxf4 {[%clk 0:00:17]}  Nxf4 {[%clk 0:01:00]} 45. Rg8 {[%clk 0:00:16]}  Ne6 {[%clk 0:01:00]} 46. Re8 {[%clk 0:00:16]}  Nc7 {[%clk 0:00:59]} 47. Re7 {[%clk 0:00:16]}  g5 {[%clk 0:00:59]} 48. Kg2 {[%clk 0:00:16]}  a5 {[%clk 0:00:58]} 49. Rh7 {[%clk 0:00:15]}  Nd5 {[%clk 0:00:58]} 50. Rxh6+ {[%clk 0:00:15]}  Kb5 {[%clk 0:00:59]} 51. Kg3 {[%clk 0:00:15]}  Nc3 {[%clk 0:00:58]} 52. a3 {[%clk 0:00:14]}  Nb1 {[%clk 0:00:56]} 53. Rg6 {[%clk 0:00:13]}  Nxa3 {[%clk 0:00:56]} 54. Rxg5+ {[%clk 0:00:13]}  Kb4 {[%clk 0:00:57]} 55. h4 {[%clk 0:00:14]}  Nc4 {[%clk 0:00:58]} 56. h5 {[%clk 0:00:13]}  a4 {[%clk 0:00:58]} 57. h6 {[%clk 0:00:13]}  Nd6 {[%clk 0:00:58]} 58. Rg4+ {[%clk 0:00:10]}  Kb3 {[%clk 0:00:58]} 59. h7 {[%clk 0:00:10]}  Nf7 {[%clk 0:00:58]} 60. Rg7 {[%clk 0:00:10]}  Nh8 {[%clk 0:00:56]} 61. Rg8 {[%clk 0:00:10]}  Nf7 {[%clk 0:00:55]} 62. Rf8 {[%clk 0:00:10]}  Ng5 {[%clk 0:00:51]} 63. h8=Q {[%clk 0:00:09]}  Ne4+ {[%clk 0:00:51]} 64. Kg2 {[%clk 0:00:08]}  Nc3 {[%clk 0:00:50]} 65. Rb8+ {[%clk 0:00:09]}  Kc2 {[%clk 0:00:50]} 66. Rc8 {[%clk 0:00:08]}  Kb1 {[%clk 0:00:50]} 67. Qxc3 {[%clk 0:00:08]}  a3 {[%clk 0:00:51]} 68. Rb8+ {[%clk 0:00:07]}  Ka2 {[%clk 0:00:50]} 69. Qc2+ {[%clk 0:00:08]}  Ka1 {[%clk 0:00:50]} 70. Qc1+ {[%clk 0:00:07]}  Ka2 {[%clk 0:00:50]} 71. Qb1# {[%clk 0:00:07]} 1-0


[Site "https://www.chess.com"]

[Event "Titled Tuesday Blitz July 4 Late 2023"]
[White "benny_aizenberg"]
[Black "Vega Gutierrez, Sabrina"]
[BlackFideId "2219026"]
[WhiteElo "2680"]
[BlackElo "2403"]
[Result "1-0"]
[Round "1"]
[TimeControl "180+2"]
[Date "2023.07.04"]
[WhiteClock "0:00:13"]
[BlackClock "0:00:00"]
[Board "85"]

1. f4 {[%clk 0:02:59]}  d5 {[%clk 0:03:00]} 2. Nf3 {[%clk 0:03:00]}  Nf6 {[%clk 0:03:00]} 3. g3 {[%clk 0:03:00]}  g6 {[%clk 0:03:00]} 4. Bg2 {[%clk 0:03:01]}  Bg7 {[%clk 0:03:01]} 5. O-O {[%clk 0:03:01]}  O-O {[%clk 0:03:01]} 6. d3 {[%clk 0:03:02]}  c5 {[%clk 0:03:01]} 7. c3 {[%clk 0:03:02]}  Nc6 {[%clk 0:03:01]} 8. Qe1 {[%clk 0:03:03]}  d4 {[%clk 0:02:43]} 9. e4 {[%clk 0:03:02]}  dxe3 {[%clk 0:02:40]} 10. Qxe3 {[%clk 0:03:00]}  Bf5 {[%clk 0:02:10]} 11. Rd1 {[%clk 0:02:34]}  b6 {[%clk 0:01:50]} 12. Na3 {[%clk 0:02:33]}  e5 {[%clk 0:01:40]} 13. Nxe5 {[%clk 0:02:12]}  Nxe5 {[%clk 0:01:40]} 14. fxe5 {[%clk 0:02:03]}  Ng4 {[%clk 0:01:36]} 15. Qe2 {[%clk 0:01:48]}  Nxe5 {[%clk 0:01:31]} 16. Bxa8 {[%clk 0:01:36]}  Qxa8 {[%clk 0:01:32]} 17. Bf4 {[%clk 0:01:36]}  Bg4 {[%clk 0:01:30]} 18. Qe4 {[%clk 0:01:27]}  Qxe4 {[%clk 0:01:24]} 19. dxe4 {[%clk 0:01:27]}  Bxd1 {[%clk 0:01:24]} 20. Rxd1 {[%clk 0:01:27]}  Re8 {[%clk 0:01:22]} 21. Nb5 {[%clk 0:01:27]}  Nc4 {[%clk 0:01:13]} 22. b3 {[%clk 0:01:20]}  Na5 {[%clk 0:01:01]} 23. Rd7 {[%clk 0:01:09]}  h5 {[%clk 0:00:31]} 24. Nd6 {[%clk 0:01:03]}  Re6 {[%clk 0:00:28]} 25. Rd8+ {[%clk 0:00:56]}  Kh7 {[%clk 0:00:27]} 26. Nxf7 {[%clk 0:00:54]}  Bf6 {[%clk 0:00:20]} 27. Rd7 {[%clk 0:00:50]}  Kg8 {[%clk 0:00:18]} 28. e5 {[%clk 0:00:50]}  Bg7 {[%clk 0:00:17]} 29. Ng5 {[%clk 0:00:50]}  Re8 {[%clk 0:00:17]} 30. e6 {[%clk 0:00:42]}  Nc6 {[%clk 0:00:17]} 31. c4 {[%clk 0:00:39]}  Nd4 {[%clk 0:00:14]} 32. e7 {[%clk 0:00:36]}  Nc6 {[%clk 0:00:12]} 33. Rc7 {[%clk 0:00:21]}  Nxe7 {[%clk 0:00:11]} 34. Rxa7 {[%clk 0:00:20]}  Bd4+ {[%clk 0:00:09]} 35. Kg2 {[%clk 0:00:20]}  Nf5 {[%clk 0:00:09]} 36. Kf3 {[%clk 0:00:15]}  Re1 {[%clk 0:00:06]} 37. Ne4 {[%clk 0:00:13]}  Rf1+ {[%clk 0:00:04]} 38. Ke2 {[%clk 0:00:13]}  Rh1 {[%clk 0:00:04]} 39. h4 {[%clk 0:00:12]}  Rh2+ {[%clk 0:00:04]} 40. Kd3 {[%clk 0:00:12]}  Rh1 {[%clk 0:00:00]} 41. Ng5 {[%clk 0:00:13]} 1-0


[Site "https://www.chess.com"]